bitfinex/quotes_SOLUSD_20240714
["timestamp","ask_amount","ask_price","bid_price","bid_amount"]
[1720922030456,1.7185616,145.5,145.39,50.9027]
[1720922030662,12.8785616,145.5,145.45,11.16]
[1720922030868,1.7185616,145.5,145.46,11.16]
[1720922031979,57.8785616,145.5,145.39,50.9027]
[1720922032163,57.8785616,145.5,145.45,11.16]
[1720922032577,22.4714,145.52,145.45,11.16]
[1720922032789,11.16,145.5,145.46,11.16]
[1720922033297,22.4714,145.52,145.46,11.16]
[1720922033601,11.16,145.5,145.46,11.16]
[1720922034066,11.16,145.51,145.47,11.16]
[1720922034271,12.87858957,145.51,145.46,11.16]
[1720922035596,1.71858957,145.51,145.47,11.16]
[1720922035783,12.87858957,145.51,145.47,11.16]
[1720922035979,1.71858957,145.51,145.47,11.16]
[1720922036491,1.71858957,145.51,145.48,11.16]
[1720922037296,1.71858957,145.51,145.49,11.16]
[1720922037484,17.58644117,145.52,145.49,11.16]
[1720922038001,1.71819654,145.51,145.49,11.16]
[1720922038678,17.58644975,145.52,145.49,11.16]
[1720922041167,1.71824975,145.52,145.49,11.16]
[1720922041477,0.8473678,145.55,145.51,55.8]
[1720922041677,0.8473678,145.55,145.54,11.16]
[1720922041893,0.8473678,145.55,145.54,12.53382446]
[1720922042203,0.8473678,145.55,145.54,74.05172446]
[1720922042375,0.8473678,145.55,145.54,29.05172446]
[1720922042580,0.8473678,145.55,145.54,62.89172446]
[1720922042801,0.8473678,145.55,145.54,74.05172446]
[1720922042988,219.91473007,145.57,145.54,74.05172446]
[1720922043174,219.91473007,145.57,145.56,11.16]
[1720922045595,219.91473007,145.57,145.53,6.0919]
[1720922045803,219.91473007,145.57,145.54,1.37383828]
[1720922046096,219.91473007,145.57,145.56,11.16]
[1720922046670,219.91473007,145.57,145.51,16.5179]
[1720922046895,219.91473007,145.57,145.56,11.16]
[1720922047573,219.91473007,145.57,145.54,1.3738244]
[1720922047803,219.91473007,145.57,145.56,11.16]
[1720922048277,219.91473007,145.57,145.56,56.16]
[1720922048478,219.91473007,145.57,145.56,11.16]
[1720922049003,219.91473007,145.57,145.54,1.37363611]
[1720922049218,219.91473007,145.57,145.51,16.5179]
[1720922049219,219.91473007,145.57,145.56,11.16]
[1720922049609,219.91473007,145.57,145.55,1.37378287]
[1720922049796,219.91473007,145.57,145.56,11.16]
[1720922051628,231.07473007,145.57,145.47,19.21665609]
[1720922051796,11.16,145.53,145.47,16.5179]
[1720922052122,11.16,145.53,145.49,11.16]
[1720922052421,1.71805871,145.52,145.49,11.16]
[1720922052591,1.71805871,145.52,145.48,11.16]
[1720922052789,1.71805871,145.52,145.43,16.5179]
[1720922052790,1.71805871,145.52,145.49,11.16]
[1720922053227,1.71826748,145.52,145.48,11.16]
[1720922053921,12.87826748,145.52,145.48,11.16]
[1720922054505,1.71820972,145.51,145.43,16.5179]
[1720922054704,1.71826749,145.52,145.44,20.0]
[1720922055809,1.71826614,145.51,145.45,1.37461275]
[1720922056201,1.71826614,145.51,145.46,1.37474554]
[1720922056400,1.71835037,145.52,145.44,1.37468029]
[1720922056727,1.71848701,145.51,145.43,16.5179]
[1720922057227,1.71848701,145.51,145.4,22.28]
[1720922057405,1.71848701,145.51,145.41,1.37494753]
[1720922058021,1.71848701,145.51,145.4,42.28]
[1720922058222,1.71848701,145.51,145.41,20.0]
[1720922058705,1.71848701,145.51,145.4,22.28]
[1720922059320,1.71848701,145.51,145.41,1.37497]
[1720922059523,1.71848701,145.51,145.4,22.28]
[1720922059821,1.71848701,145.51,145.41,1.3749521]
[1720922060031,1.71843217,145.5,145.41,45.0]
[1720922060208,1.71843456,145.52,145.42,1.37474765]
[1720922060401,1.71843456,145.52,145.41,45.0]
[1720922060402,1.71852693,145.51,145.41,45.0]
[1720922060604,1.71852693,145.51,145.42,1.37482229]
[1720922060817,1.71852693,145.51,145.4,22.28]
[1720922061023,1.71852693,145.51,145.41,1.37493768]
[1720922062116,1.71852693,145.51,145.4,65.0]
[1720922062625,1.71852693,145.51,145.41,1.37493695]
[1720922062825,1.71852693,145.51,145.4,65.0]
[1720922063804,1.71852693,145.51,145.41,1.37482401]
[1720922065014,1.71852693,145.51,145.4,65.0]
[1720922066627,1.71852693,145.51,145.41,1.37491679]
[1720922066628,23.0895,145.5,145.41,1.37491679]
[1720922066810,68.99905595,145.49,145.34,15.7732]
[1720922067020,1.71916031,145.48,145.34,38.0532]
[1720922067231,38.8745,145.47,145.34,15.7732]
[1720922067431,46.71933373,145.46,145.34,15.7732]
[1720922067610,1.71927458,145.45,145.34,15.7732]
[1720922068217,1.71927458,145.45,145.35,1.37540357]
[1720922068732,1.71927458,145.45,145.35,23.65540357]
[1720922068918,1.71927458,145.45,145.36,45.0]
[1720922069228,1.71927458,145.45,145.37,1.37534204]
[1720922070023,16.5945,145.47,145.37,43.65534204]
[1720922070233,16.5945,145.47,145.39,22.28]
[1720922070426,1.71883732,145.46,145.39,22.28]
[1720922070622,1.71883732,145.46,145.37,20.0]
[1720922070623,1.71883732,145.46,145.4,1.37506986]
[1720922070821,1.71883732,145.46,145.37,42.28]
[1720922071130,46.71883732,145.46,145.36,45.0]
[1720922071306,6.495,145.45,145.35,45.0]
[1720922071505,8.21418165,145.45,145.36,21.37534532]
[1720922071727,8.21418165,145.45,145.36,20.0]
[1720922071904,8.21418165,145.45,145.34,18.48674547]
[1720922072113,8.21418165,145.45,145.35,20.0]
[1720922072312,8.21418165,145.45,145.36,1.37548644]
[1720922073613,8.21418165,145.45,145.35,20.0]
[1720922073820,8.21418165,145.45,145.36,1.37543042]
[1720922074017,1.71928752,145.44,145.36,46.37543042]
[1720922074336,18.31353306,145.47,145.37,22.28]
[1720922074527,18.31353306,145.47,145.39,22.28]
[1720922074835,18.31353306,145.47,145.4,1.37506081]
[1720922075235,18.31353306,145.47,145.39,22.28]
[1720922075411,16.5945,145.47,145.4,1.37517114]
[1720922076333,16.5945,145.47,145.39,1.37505797]
[1720922076815,16.5945,145.47,145.38,65.0]
[1720922077231,16.5945,145.47,145.39,1.3750583]
[1720922078325,1.71882498,145.46,145.39,1.3750583]
[1720922078517,1.71882498,145.46,145.39,1.37519496]
[1720922078929,1.71882498,145.46,145.37,22.28]
[1720922079110,1.71882498,145.46,145.38,1.37523924]
[1720922079610,1.71882498,145.46,145.35,22.28]
[1720922079807,6.1913,145.45,145.36,20.0]
[1720922080034,1.71925388,145.44,145.35,22.28]
[1720922080241,1.71925388,145.44,145.36,1.37540052]
[1720922081419,1.71925388,145.44,145.36,45.0]
[1720922081621,1.71925388,145.44,145.35,22.28]
[1720922082909,6.1913,145.45,145.35,42.98]
[1720922083115,16.5945,145.47,145.38,22.28]
[1720922083419,16.5945,145.47,145.39,46.37494123]
[1720922083736,16.5945,145.47,145.4,45.0]
[1720922084045,16.5945,145.47,145.39,46.37494123]
[1720922084219,16.5945,145.47,145.41,1.37499906]
[1720922086439,16.5945,145.47,145.39,45.0]
[1720922086850,16.5945,145.47,145.4,1.37501613]
[1720922087358,1.71877029,145.46,145.39,45.0]
[1720922087563,16.5945,145.47,145.4,1.37504854]
[1720922088356,16.5945,145.47,145.39,45.0]
[1720922088864,1.71876954,145.46,145.39,45.0]
[1720922089357,1.71876954,145.46,145.4,1.37506327]
[1720922090055,1.71876954,145.46,145.37,20.0]
[1720922090237,1.71876954,145.46,145.38,45.0]
[1720922090858,1.71876954,145.46,145.36,22.28]
[1720922091063,6.1913,145.45,145.34,38.0532]
[1720922091233,1.71909647,145.44,145.35,1.37527717]
[1720922091438,7.9103194,145.45,145.36,23.65521552]
[1720922092058,7.9103194,145.45,145.37,45.0]
[1720922092359,7.9103194,145.45,145.38,1.37521541]
[1720922092360,6.1913,145.45,145.38,1.37521541]
[1720922092563,17.3413,145.45,145.41,11.15]
[1720922092860,19.06031934,145.45,145.41,11.15]
[1720922093436,19.06031934,145.45,145.4,11.15]
[1720922093635,6.1913,145.45,145.41,1.3752182]
[1720922093853,19.06034089,145.45,145.4,11.15]
[1720922094038,11.15,145.44,145.39,11.15]
[1720922094233,1.71918526,145.43,145.39,11.15]
[1720922094764,1.71918526,145.43,145.4,1.37534949]
[1720922094765,11.15,145.43,145.4,1.37534949]
[1720922095142,11.15,145.43,145.39,11.15]
[1720922097065,11.15,145.43,145.34,15.7732]
[1720922097240,1.71925839,145.42,145.35,20.0]
[1720922097444,11.15,145.43,145.38,11.15]
[1720922097779,11.15,145.43,145.39,12.52540023]
[1720922097946,11.15,145.43,145.39,1.37540023]
[1720922098154,12.86923476,145.42,145.35,20.0]
[1720922098354,11.15,145.42,145.37,11.15]
[1720922098668,11.15,145.43,145.38,12.52545051]
[1720922098842,12.86931596,145.42,145.38,12.52545051]
[1720922099042,11.15,145.42,145.38,12.52545051]
[1720922099251,11.15,145.42,145.38,11.15]
[1720922100045,11.15,145.42,145.35,1.37545298]
[1720922100240,1.71931623,145.44,145.4,11.15]
[1720922100445,19.06039966,145.45,145.41,12.52498655]
[1720922100669,19.06039966,145.45,145.41,11.15]
[1720922100857,11.15,145.44,145.4,11.15]
[1720922101047,11.15,145.44,145.39,11.15]
[1720922101365,7.91039966,145.45,145.4,1.37528756]
[1720922101366,11.15,145.43,145.4,1.37528756]
[1720922101866,11.15,145.43,145.4,1.37537454]
[1720922102066,7.91050684,145.45,145.4,1.37537454]
[1720922102248,11.15,145.44,145.4,12.52537454]
[1720922103049,19.06050684,145.45,145.4,12.52537454]
[1720922104771,16.5945,145.47,145.42,11.15]
[1720922104953,27.7445,145.47,145.43,12.52500088]
[1720922105158,6.2243,145.49,145.45,11.15]
[1720922105363,6.2243,145.49,145.46,1.37477693]
[1720922106475,11.15,145.47,145.37,16.4105]
[1720922106683,11.15,145.44,145.4,11.15]
[1720922106965,1.71900459,145.46,145.4,11.15]
[1720922106966,11.15,145.45,145.4,11.15]
[1720922107174,11.15,145.45,145.41,11.15]
[1720922107570,11.15,145.44,145.4,11.15]
[1720922107870,11.15,145.45,145.41,12.52517164]
[1720922108474,1.71896021,145.47,145.41,12.52517164]
[1720922108647,1.7188179,145.48,145.41,1.37517164]
[1720922108853,1.7188179,145.48,145.37,38.7105]
[1720922109172,1.7188179,145.48,145.38,45.0]
[1720922109378,1.7188179,145.48,145.39,20.0]
[1720922109566,1.7188179,145.48,145.4,46.37496662]
[1720922110578,7.94297829,145.49,145.4,46.37496662]
[1720922110883,6.2243,145.49,145.4,46.37496662]
[1720922113260,1.71852569,145.48,145.4,46.37496662]
[1720922113673,1.71852569,145.48,145.4,45.0]
[1720922113875,1.7185951,145.5,145.42,22.9031]
[1720922114072,6.2243,145.54,145.46,22.3]
[1720922114271,7.94222912,145.54,145.47,1.3743433]
[1720922114584,7.942194,145.54,145.47,1.3743433]
[1720922116877,7.942194,145.54,145.46,22.3]
[1720922117489,7.942194,145.54,145.47,1.37449829]
[1720922119486,7.942194,145.54,145.47,1.3744974]
[1720922120889,1.717894,145.54,145.47,1.3744974]
[1720922121190,1.71779177,145.57,145.47,46.3744974]
[1720922121587,1.71779177,145.57,145.47,45.0]
[1720922123377,46.71779177,145.57,145.46,22.3]
[1720922126380,46.71779177,145.57,145.47,45.0]
[1720922127596,46.71779177,145.57,145.46,22.3]
[1720922127972,46.71779177,145.57,145.47,1.37432648]
[1720922128166,46.71779177,145.57,145.47,46.37432648]
[1720922128592,1.71779177,145.57,145.47,62.42442648]
[1720922130094,46.71779177,145.57,145.47,61.0501]
[1720922130594,11.14,145.54,145.5,11.14]
[1720922130791,11.14,145.55,145.5,11.14]
[1720922130991,1.71789989,145.54,145.5,11.14]
[1720922131297,12.85789989,145.54,145.49,11.14]
[1720922131596,11.14,145.53,145.49,11.14]
[1720922131978,1.71806559,145.52,145.43,36.0501]
[1720922132182,1.71806559,145.52,145.49,11.14]
[1720922132787,1.71806559,145.52,145.43,36.0501]
[1720922132993,1.71806559,145.52,145.48,11.14]
[1720922133195,1.71806559,145.52,145.43,36.0501]
[1720922133498,1.71806559,145.52,145.48,11.14]
[1720922134494,1.71806559,145.52,145.49,11.14]
[1720922138701,1.71806559,145.52,145.48,11.14]
[1720922139198,1.71816835,145.56,145.49,1.37453468]
[1720922139405,11.14,145.54,145.5,11.14]
[1720922140078,1.71816835,145.56,145.5,11.14]
[1720922140275,11.14,145.56,145.51,12.51423571]
[1720922140502,1.71779523,145.55,145.51,11.14]
[1720922140694,11.14,145.56,145.51,11.14]
[1720922141001,12.85781129,145.55,145.51,11.14]
[1720922141600,12.85781129,145.55,145.43,56.7501]
[1720922141800,12.85781129,145.55,145.5,11.14]
[1720922142101,1.71781129,145.55,145.52,16.6211]
[1720922142404,0.59283878,145.59,145.54,11.14]
[1720922142584,0.59283878,145.59,145.57,11.14]
[1720922143280,0.59283878,145.59,145.55,1.37366792]
[1720922143494,11.73283878,145.59,145.55,1.37366792]
[1720922143697,13.45011458,145.59,145.55,12.51394967]
[1720922144077,13.45011458,145.59,145.55,11.14]
[1720922145501,2.31011458,145.59,145.55,11.14]
[1720922145705,11.73283878,145.59,145.53,1.37392588]
[1720922145878,11.73283878,145.59,145.55,11.14]
[1720922146719,11.73283878,145.59,145.53,1.37392588]
[1720922146720,0.59283878,145.59,145.53,1.37392588]
[1720922147006,0.59283878,145.59,145.46,31.7216947]
[1720922147007,24.57480991,145.58,145.48,16.6211]
[1720922147201,45.0,145.57,145.48,16.6211]
[1720922147385,1.71804843,145.56,145.46,22.26]
[1720922147700,1.71804843,145.56,145.44,16.6211]
[1720922147909,1.71804843,145.56,145.44,38.8811]
[1720922148104,1.71804843,145.56,145.45,1.37450372]
[1720922148279,1.71804843,145.56,145.45,21.37450372]
[1720922148608,55.1174,145.58,145.46,22.26]
[1720922148609,1.71784614,145.55,145.46,22.26]
[1720922148789,55.1174,145.58,145.46,22.26]
[1720922148790,1.7178484,145.57,145.46,22.26]
[1720922148991,46.7178484,145.57,145.46,22.26]
[1720922149211,46.7178484,145.57,145.45,20.0]
[1720922149508,46.7178484,145.57,145.46,1.37446135]
[1720922149892,46.7178484,145.57,145.46,46.37446135]
[1720922150088,1.7178484,145.57,145.46,46.37446135]
[1720922150594,46.7178484,145.57,145.46,45.0]
[1720922150796,46.7178484,145.57,145.47,1.37432538]
[1720922153613,46.7178484,145.57,145.45,20.0]
[1720922154111,46.7178484,145.57,145.46,1.37448055]
[1720922157110,46.7178484,145.57,145.45,20.0]
[1720922157517,46.7178484,145.57,145.46,1.37447942]
[1720922161195,46.7178484,145.57,145.46,46.37433712]
[1720922161596,46.7178484,145.57,145.47,1.37433898]
[1720922163405,22.8574,145.58,145.48,22.26]
[1720922163624,1.71754427,145.57,145.49,66.37403528]
[1720922163825,22.8574,145.58,145.49,66.37403528]
[1720922164015,22.8574,145.58,145.49,81.57773528]
[1720922165304,22.8574,145.58,145.5,22.26]
[1720922165507,22.8574,145.58,145.51,65.0]
[1720922166423,22.8574,145.58,145.52,1.37385479]
[1720922166724,22.8574,145.58,145.54,11.13]
[1720922167216,22.8574,145.58,145.55,1.37385806]
[1720922169329,0.59283878,145.59,145.55,11.13]
[1720922169537,0.59283878,145.59,145.57,11.13]
[1720922169911,0.59283878,145.59,145.56,11.13]
[1720922170108,0.59283878,145.59,145.52,1.37379371]
[1720922170449,11.72283878,145.59,145.54,11.13]
[1720922170635,12.84743219,145.58,145.54,11.13]
[1720922170815,11.13,145.58,145.54,11.13]
[1720922171012,1.71751853,145.57,145.54,11.13]
[1720922171213,0.59283878,145.59,145.54,11.13]
[1720922171431,11.13,145.58,145.54,11.13]
[1720922172337,12.8474628,145.57,145.5,20.0]
[1720922172507,28.6509628,145.57,145.46,69.1853947]
[1720922172712,6.2402,145.56,145.52,11.13]
[1720922172951,1.71771802,145.55,145.52,11.13]
[1720922173113,1.71771802,145.55,145.46,69.1853947]
[1720922173438,1.71771802,145.55,145.52,11.13]
[1720922173618,15.8035,145.57,145.53,12.50412554]
[1720922173812,2.31015513,145.59,145.55,11.13]
[1720922174013,2.31015513,145.59,145.56,11.13]
[1720922174319,2.31015513,145.59,145.48,1.3738401]
[1720922174524,13.44015513,145.59,145.54,11.13]
[1720922176310,2.31015513,145.59,145.54,11.13]
[1720922176611,11.13,145.58,145.54,11.13]
[1720922176809,1.71755493,145.57,145.54,11.13]
[1720922177622,1.71755493,145.57,145.49,1.37398595]
[1720922177921,1.71755493,145.57,145.54,11.13]
[1720922179838,2.31039648,145.59,145.54,11.13]
[1720922180149,2.31039648,145.59,145.48,40.7]
[1720922180150,13.44039648,145.59,145.55,11.13]
[1720922180642,13.44039648,145.59,145.54,11.13]
[1720922182038,11.13,145.58,145.53,11.13]
[1720922182343,1.71758575,145.57,145.53,11.13]
[1720922183338,1.71758575,145.57,145.49,1.37406023]
[1720922183545,12.84781457,145.56,145.51,11.13]
[1720922183728,12.84781457,145.56,145.52,11.13]
[1720922184240,1.71781457,145.56,145.53,11.13]
[1720922184450,1.7176662,145.56,145.53,11.13]
[1720922185341,1.7177119,145.57,145.53,11.13]
[1720922185845,12.8477119,145.57,145.53,11.13]
[1720922186155,11.13,145.56,145.47,1.37417199]
[1720922186447,1.71789101,145.55,145.52,11.13]
[1720922186624,1.71789101,145.55,145.53,11.13]
[1720922187044,1.71789101,145.55,145.47,66.37417199]
[1720922187245,1.71789101,145.55,145.52,11.13]
[1720922187422,1.71787766,145.56,145.52,11.13]
[1720922187628,2.31060616,145.59,145.53,11.13]
[1720922187845,11.13,145.57,145.52,11.13]
[1720922188026,1.71778614,145.56,145.52,11.13]
[1720922188723,11.13,145.57,145.52,11.13]
[1720922188918,1.71777422,145.56,145.52,11.13]
[1720922191221,11.13,145.56,145.52,11.13]
[1720922191422,1.7177824,145.55,145.52,11.13]
[1720922192724,1.7177824,145.55,145.51,11.13]
[1720922196225,12.8477824,145.55,145.51,11.13]
[1720922196428,11.13,145.55,145.51,11.13]
[1720922196647,11.13,145.56,145.51,11.13]
[1720922196819,1.71780752,145.55,145.51,11.13]
[1720922197024,11.13,145.54,145.47,21.37417199]
[1720922197223,1.71807213,145.53,145.49,11.13]
[1720922197451,1.71807213,145.53,145.47,21.37417199]
[1720922197753,1.71807213,145.53,145.49,11.13]
[1720922198537,12.84807213,145.53,145.49,11.13]
[1720922198738,11.13,145.53,145.49,11.13]
[1720922198933,1.71807717,145.52,145.49,11.13]
[1720922199153,1.71807717,145.52,145.46,15.2037]
[1720922199345,1.71807717,145.52,145.49,11.13]
[1720922200751,1.71807717,145.52,145.48,11.13]
[1720922201054,1.71807717,145.52,145.49,12.50449095]
[1720922201229,1.71807717,145.52,145.49,11.13]
[1720922201951,1.71811079,145.54,145.49,11.13]
[1720922202158,12.84811079,145.54,145.49,11.13]
[1720922202364,6.3338,145.56,145.53,11.13]
[1720922202527,1.71760351,145.55,145.5,1.37448694]
[1720922202726,11.13,145.53,145.47,20.0]
[1720922203043,1.7180811,145.52,145.49,11.13]
[1720922203246,11.13,145.53,145.49,11.13]
[1720922203436,11.13,145.54,145.49,11.13]
[1720922203637,12.84803559,145.54,145.5,11.13]
[1720922204036,12.84803559,145.54,145.47,20.0]
[1720922204350,12.84803559,145.54,145.5,11.13]
[1720922204547,1.71811313,145.53,145.48,1.37446588]
[1720922204753,1.71811313,145.53,145.49,11.13]
[1720922205054,12.84811313,145.53,145.46,15.2037]
[1720922205240,12.84811313,145.53,145.48,11.13]
[1720922205432,12.84811313,145.53,145.49,1.37449723]
[1720922205764,1.71811313,145.53,145.49,11.13]
[1720922205947,1.71812156,145.53,145.49,11.13]
[1720922206148,12.84807696,145.55,145.5,11.13]
[1720922206453,1.71807702,145.54,145.5,11.13]
[1720922207053,12.84807702,145.54,145.49,11.13]
[1720922207256,1.71807684,145.53,145.49,11.13]
[1720922207743,6.3338,145.56,145.5,12.50446147]
[1720922207949,12.84780437,145.55,145.51,11.13]
[1720922208150,1.71780437,145.55,145.51,11.13]
[1720922208654,1.71782213,145.54,145.51,11.13]
[1720922209032,12.84782213,145.54,145.5,11.13]
[1720922209731,1.71782213,145.54,145.5,11.13]
[1720922209939,12.8479108,145.55,145.51,1.37432864]
[1720922210255,1.71791106,145.54,145.5,11.13]
[1720922211255,12.84791106,145.54,145.5,11.13]
[1720922213735,1.71791106,145.54,145.5,11.13]
[1720922214061,1.71798426,145.54,145.5,11.13]
[1720922215746,1.71798115,145.55,145.5,11.13]
[1720922215950,1.7179811,145.54,145.46,15.2037]
[1720922216150,1.7179811,145.54,145.5,11.13]
[1720922218870,12.8479811,145.54,145.49,11.13]
[1720922219075,1.71798357,145.53,145.47,1.37438489]
[1720922219364,1.71798357,145.53,145.49,11.13]
[1720922221372,11.13,145.51,145.42,32.93407608]
[1720922221588,7.84409888,145.5,145.43,1.3748309]
[1720922221881,11.13,145.47,145.42,11.13]
[1720922222171,11.13,145.47,145.37,6.5144]
[1720922222172,11.13,145.45,145.37,6.5144]
[1720922222347,12.84893053,145.44,145.4,11.13]
[1720922222547,11.13,145.43,145.36,15.4009]
[1720922222748,11.13,145.4,145.33,6.5144]
[1720922222957,1.71965089,145.39,145.33,6.5144]
[1720922223152,12.84965089,145.39,145.32,15.4009]
[1720922223564,12.84965089,145.39,145.35,11.13]
[1720922223771,12.84965177,145.4,145.36,12.50572142]
[1720922224068,1.71965177,145.4,145.36,12.50572142]
[1720922224644,6.1256,145.44,145.38,11.13]
[1720922224645,1.71963442,145.43,145.38,11.13]
[1720922224957,1.71947043,145.43,145.39,12.50557635]
[1720922225282,1.71947043,145.43,145.4,11.13]
[1720922226156,1.71947043,145.43,145.39,11.13]
[1720922226339,1.71932907,145.42,145.39,11.13]
[1720922226769,12.84933033,145.43,145.39,11.13]
[1720922227073,22.4562,145.44,145.4,12.50545975]
[1720922227668,1.71909385,145.43,145.4,11.13]
[1720922227975,1.71909385,145.43,145.39,11.13]
[1720922228479,12.84909385,145.43,145.39,11.13]
[1720922228970,12.84909385,145.43,145.33,1.37550531]
[1720922229271,1.71909385,145.43,145.38,11.13]
[1720922229474,11.13,145.42,145.37,11.13]
[1720922229676,1.71947643,145.41,145.37,11.13]
[1720922230045,12.84947643,145.41,145.37,11.13]
[1720922230249,11.13,145.41,145.37,11.13]
[1720922233282,1.71947254,145.4,145.37,11.13]
[1720922233674,1.71947254,145.4,145.33,46.37550531]
[1720922233675,1.71947254,145.4,145.36,11.13]
[1720922234484,12.84947254,145.4,145.36,11.13]
[1720922235275,1.71947254,145.4,145.37,11.13]
[1720922235470,1.71964824,145.4,145.37,11.13]
[1720922235981,1.71964824,145.4,145.36,11.13]
[1720922237258,11.13,145.41,145.36,11.13]
[1720922237475,1.71964722,145.4,145.36,11.13]
[1720922239363,12.84964722,145.4,145.36,11.13]
[1720922239564,1.71964591,145.39,145.36,11.13]
[1720922241271,1.71964591,145.39,145.33,45.0]
[1720922241464,1.71964591,145.39,145.35,11.13]
[1720922241661,12.84964591,145.39,145.29,6.5144]
[1720922241881,1.71995303,145.38,145.34,11.13]
[1720922242071,12.84995303,145.38,145.34,11.13]
[1720922242385,1.71995303,145.38,145.29,6.5144]
[1720922242580,11.13,145.4,145.36,11.13]
[1720922242781,12.84973409,145.39,145.32,11.13]
[1720922242968,11.13,145.38,145.34,11.13]
[1720922243165,1.7199061,145.37,145.34,11.13]
[1720922243364,11.13,145.39,145.35,11.13]
[1720922244182,1.71977579,145.38,145.35,11.13]
[1720922244478,12.84977579,145.38,145.29,6.5144]
[1720922244689,12.84977579,145.38,145.34,11.13]
[1720922245306,1.71977579,145.38,145.34,11.13]
[1720922245469,1.71977662,145.38,145.35,11.13]
[1720922245664,1.71977662,145.38,145.34,11.13]
[1720922245975,12.84977662,145.38,145.34,11.13]
[1720922246964,1.71977662,145.38,145.34,11.13]
[1720922247293,26.9737,145.39,145.3,45.0]
[1720922247494,12.85006825,145.38,145.33,11.13]
[1720922248086,12.85006825,145.38,145.32,1.37602202]
[1720922248284,12.85006825,145.38,145.33,11.13]
[1720922248466,12.85006825,145.38,145.34,11.13]
[1720922249591,1.72006825,145.38,145.32,1.37602202]
[1720922249779,12.85006825,145.38,145.34,11.13]
[1720922250269,12.85006825,145.38,145.31,1.37602051]
[1720922250673,12.85006825,145.38,145.33,11.13]
[1720922251788,1.72006825,145.38,145.33,11.13]
[1720922251994,15.8437,145.39,145.34,1.37602379]
[1720922252294,17.56345847,145.43,145.36,11.13]
[1720922252502,12.8495203,145.42,145.37,12.50561624]
[1720922252681,12.8495203,145.42,145.37,11.13]
[1720922252872,11.13,145.4,145.3,20.0]
[1720922253175,1.71982631,145.39,145.35,11.13]
[1720922253399,1.71982631,145.39,145.3,20.0]
[1720922253698,11.13,145.38,145.33,11.13]
[1720922253993,1.72002522,145.42,145.36,11.13]
[1720922254294,1.72002522,145.42,145.37,11.13]
[1720922254469,11.13,145.41,145.37,11.13]
[1720922254673,1.71966172,145.4,145.36,11.13]
[1720922254982,1.71966991,145.39,145.36,11.13]
[1720922255901,11.13,145.41,145.36,11.13]
[1720922255902,1.71966077,145.4,145.36,11.13]
[1720922256503,12.84966077,145.4,145.36,11.13]
[1720922256684,11.13,145.4,145.36,11.13]
[1720922256886,11.13,145.41,145.36,11.13]
[1720922257086,1.71962991,145.4,145.36,11.13]
[1720922257387,1.71962991,145.4,145.37,11.13]
[1720922259382,1.71962991,145.4,145.36,11.13]
[1720922259882,12.84962991,145.4,145.32,44.52]
[1720922260078,12.84962991,145.4,145.33,1.3758695]
[1720922260299,12.84962991,145.4,145.32,44.52]
[1720922260876,1.71962991,145.4,145.33,1.37578124]
[1720922261200,11.13,145.41,145.33,45.0]
[1720922261502,1.71956887,145.4,145.34,1.3756551]
[1720922261908,12.84956887,145.4,145.34,1.3756551]
[1720922262794,12.84956887,145.4,145.33,45.0]
[1720922263308,1.71956887,145.4,145.33,45.0]
[1720922263611,11.13,145.4,145.33,45.0]
[1720922263986,11.13,145.4,145.34,1.37565597]
[1720922264486,1.71957029,145.39,145.34,1.37565597]
[1720922264687,12.84957029,145.39,145.34,11.13]
[1720922265506,12.84957029,145.39,145.35,11.13]
[1720922265706,1.71957029,145.39,145.35,11.13]
[1720922265910,1.71980985,145.38,145.35,11.13]
[1720922266209,1.71980985,145.38,145.34,11.13]